[Event "87th Spanish Championship 2022"]
[Site "Linares"]
[Date "2022.08.14"]
[Round "5.34"]
[White "Garcia Garcia, Samuel"]
[Black "Massanet Massanet, Sebastian"]
[Result "1/2-1/2"]
[ECO "E06"]
[WhiteElo "2084"]
[BlackElo "2232"]
[Annotator "TA"]
[PlyCount "112"]
[EventDate "2022.08.11"]
[EventType "swiss"]
[EventCountry "ESP"]
[SourceTitle "playchess.com"]
[Source "ChessBase"]
[SourceQuality "1"]
[TimeControl "5400+30"]

{[%evp 13,112,23,25,3,16,25,12,14,52,7,7,0,60,0,14,0,0,4,10,-6,-3,-20,0,0,0,0,4,4,104,0,0,0,0,0,0,0,0,0,0,0,0,0,0,0,0,-8,-8,-7,0,0,77,-9,-9,-9,0,0,0,0,0,0,0,0,0,0,0,0,0,0,0,0,0,0,0,0,0,0,0,0,0,0,0,0,0,0,0,0,0,0,0,0,0,0,0,0,0,0,0,0,0,0,0]} 1. c4 {[%emt 0:00:05]} e6 {[%emt 0:01:40]} 2. Nf3 {[%emt 0:00:27]} d5 {[%emt 0:00:12]} 3. d4 {[%emt 0:00:19]} Nf6 {[%emt 0:00:21]} 4. g3 {[%emt 0:00:09]} Be7 {[%emt 0:04:19]} 5. Bg2 {[%emt 0:00:25]} O-O {[%emt 0:00:22]} 6. O-O {[%emt 0:00:09]} b6 {[%emt 0:00:43]} 7. Nc3 {[%emt 0:01:34]} Bb7 {[%emt 0:03:05]} 8. Bf4 {[%emt 0:00:40] 8.cxd5 is a critical line. E18: Queen's Indian: Old Main Line (4 g3 Bb7 5 Bg2 Be7 6 0-0 0-0 7 Nc3).} Na6 {[%emt 0:07:38]} 9. Qa4 {[%emt 0:05:41] [#]} c5 $146 {[%emt 0:06:54]} ({Predecessor:} 9... Ne4 10. Rfd1 Qe8 11. Qb3 Nxc3 12. bxc3 c5 13. cxd5 exd5 14. a4 cxd4 15. cxd4 Rc8 16. Ne5 {½-½ (83) Mikeshin,S (2136)-Kuznetsov,V (2023) Irkutsk 2016}) 10. cxd5 {[%emt 0:06:12]} cxd4 {[%emt 0:04:19]} 11. Qxd4 {[%emt 0:01:18] [#] d6 is the strong threat.} Nxd5 {[%emt 0:01:50]} 12. Rfd1 {[%emt 0:07:02]} Rc8 {[%emt 0:03:14]} (12... Qe8 $11) 13. Nxd5 {[%emt 0:03:39]} (13. Be5 $1 $14) 13... Qxd5 {[%emt 0:02:26]} 14. Qa4 {[%emt 0:01:24]} Qc6 {[%emt 0:01:22]} 15. Qxc6 {[%emt 0:04:11]} Bxc6 {[%emt 0:00:21]} 16. Be5 {[%emt 0:10:25]} f6 {[%emt 0:05:52]} 17. Bc3 {[%emt 0:00:36]} Kf7 {[%emt 0:01:05]} 18. Nd4 {[%emt 0:01:53]} Bxg2 {[%emt 0:01:18]} 19. Kxg2 {[%emt 0:00:05]} Rc5 {[%emt 0:04:14] Prevents Nb5.} 20. a4 {[%emt 0:05:26]} Nc7 {[%emt 0:10:08] Prevents Nb5.} (20... Rb8 $11) 21. Nb5 {[%emt 0:03:05]} (21. Bb4 $16 Rc4 22. Bxe7 Kxe7 23. Rac1 Rxc1 24. Rxc1) 21... Nxb5 $11 {[%emt 0:01:31]} 22. axb5 {[%emt 0:00:12]} Rc7 {[%emt 0:00:30]} 23. Kf3 {[%emt 0:02:29]} Rb7 {[%emt 0:07:08]} 24. Ra4 {[%emt 0:01:54]} Rc8 {[%emt 0:00:55]} 25. Rda1 {[%emt 0:02:59]} Rcc7 {[%emt 0:00:17]} 26. Rd1 {[%emt 0:00:37]} e5 {[%emt 0:06:32]} 27. e4 {[%emt 0:02:59]} Ke6 {[%emt 0:02:04]} 28. Ke2 $1 {[%emt 0:01:11]} Bd6 {[%emt 0:00:31]} 29. f3 {[%emt 0:03:49]} Rc8 {[%emt 0:01:19]} 30. Rd5 {[%emt 0:01:43]} Bb8 {[%emt 0:01:21]} 31. Ra1 {[%emt 0:00:41]} g5 {[%emt 0:05:30]} (31... Rc4 $11) 32. g4 {[%emt 0:01:23] White is more active.} (32. Rad1 $16) 32... h5 {[%emt 0:01:37] The position is equal.} 33. h3 {[%emt 0:00:52]} hxg4 {[%emt 0:04:34]} 34. hxg4 {[%emt 0:00:09]} Bd6 {[%emt 0:01:35]} 35. Rad1 {[%emt 0:00:53]} Be7 {[%emt 0:00:08]} 36. Rh1 {[%emt 0:01:20]} Rc5 {[%emt 0:01:06]} 37. Rhd1 {[%emt 0:03:34]} Rbc7 {[%emt 0:01:11]} 38. R1d3 {[%emt 0:01:14]} Rc4 {[%emt 0:00:44]} 39. Kd2 {[%emt 0:00:55]} Rb7 {[%emt 0:05:41]} 40. Kc2 {[%emt 0:01:44]} Rc8 {[%emt 0:01:10]} 41. Kb3 {[%emt 0:01:22]} Bc5 {[%emt 0:02:01]} 42. Bb4 {[%emt 0:01:40]} Bd4 {[%emt 0:00:49] Against Rc3} 43. Bc3 {[%emt 0:02:02]} Bf2 {[%emt 0:01:16]} 44. Rd6+ {[%emt 0:00:10]} Ke7 $1 {[%emt 0:00:04]} 45. Bb4 {[%emt 0:02:36] [#] Rxb6+ would kill now.} Bc5 {[%emt 0:00:06]} 46. R6d5 {[%emt 0:00:23]} Bxb4 {[%emt 0:01:07]} 47. Kxb4 {[%emt 0:00:02][%mdl 4096] Endgame KRR-KRR} Rc2 {[%emt 0:00:41]} 48. Rd2 {[%emt 0:00:42]} Rbc7 {[%emt 0:00:31]} 49. Rd7+ {[%emt 0:00:35]} Rxd7 {[%emt 0:00:15]} 50. Rxc2 {[%emt 0:00:01] KR-KR} Rd4+ {[%emt 0:00:38]} 51. Rc4 {[%emt 0:00:14]} Kd6 {[%emt 0:00:55]} 52. Kc3 {[%emt 0:00:37]} Rxc4+ {[%emt 0:00:47]} 53. Kxc4 {[%emt 0:00:02]} Ke6 {[%emt 0:00:12]} 54. Kb4 {[%emt 0:00:51]} Kd6 {[%emt 0:00:17]} 55. Kc4 {[%emt 0:00:05]} Ke6 {[%emt 0:00:04]} 56. Kb4 {[%emt 0:00:04]} Kd6 {[%emt 0:00:04] Weighted Error Value: White=0.10 (very precise) /Black=0.11 (very precise)} 1/2-1/2

[Event "87th Spanish Championship 2022"]
[Site "Linares"]
[Date "2022.08.14"]
[Round "5.35"]
[White "Saenz Narciso, Miguel Angel"]
[Black "Gomez Arce, Alejandro"]
[Result "1-0"]
[ECO "A45"]
[WhiteElo "2222"]
[BlackElo "2111"]
[Annotator "TA"]
[PlyCount "81"]
[EventDate "2022.08.11"]
[EventType "swiss"]
[EventCountry "ESP"]
[SourceTitle "playchess.com"]
[Source "ChessBase"]
[SourceQuality "1"]
[TimeControl "5400+30"]

{[%evp 9,81,0,0,0,22,5,16,6,52,39,63,51,46,57,106,102,97,115,156,146,250,235,335,279,297,291,299,135,132,130,139,147,129,130,139,148,140,135,133,140,134,140,165,143,303,310,283,280,465,475,602,593,594,588,936,928,1004,985,957,948,1303,788,761,768,866,839,1089,970,1202,1237,29966,29961,2730,829]} 1. d4 {[%emt 0:00:05]} Nf6 {[%emt 0:00:09]} 2. Nc3 {[%emt 0:00:09]} d5 {[%emt 0:00:06]} 3. Bf4 {[%emt 0:00:12]} g6 {[%emt 0:00:39]} 4. e3 {[%emt 0:00:09]} Bg7 {[%emt 0:01:07]} 5. h4 {[%emt 0:00:05]} h5 {[%emt 0:02:52]} 6. Nf3 {[%emt 0:00:06] D00: 1 d4 d5: Unusual lines.} O-O {[%emt 0:06:58][%cal Oc7c5]} 7. Qd2 {[%emt 0:02:08]} c6 {[%emt 0:08:05]} 8. Ne5 {[%emt 0:01:09] The position is equal.} Bf5 {[%emt 0:09:59]} (8... Nfd7 $11) 9. f3 {[%emt 0:00:47]} Nbd7 {[%emt 0:04:18]} 10. Be2 {[%emt 0:06:52] [#]} c5 $146 {[%emt 0:15:25]} ({Predecessor:} 10... Rc8 11. Bd3 Bxd3 12. Qxd3 b5 13. O-O-O b4 14. Na4 Qa5 15. Qb3 c5 16. Nd3 cxd4 17. exd4 {½-½ (58) Ly,M (2117)-Zhao,N (2276) Belfort 2005}) 11. O-O-O {[%emt 0:03:03]} c4 {[%emt 0:05:00]} (11... Be6 $14 {might be stronger.}) 12. g4 $16 {[%emt 0:05:07]} Be6 {[%emt 0:00:01]} 13. Rdg1 {[%emt 0:05:34] White is more active.} a5 {[%emt 0:05:07]} 14. a4 {[%emt 0:15:37]} Nb6 {[%emt 0:04:55]} (14... Kh7 $16 15. Bg5 Nb6) 15. e4 $18 {[%emt 0:07:16]} Qe8 {[%emt 0:08:22]} (15... dxe4 $142 16. gxh5 Nxh5) 16. Bh6 {[%emt 0:02:15]} Nxa4 {[%emt 0:06:22]} 17. Bxg7 {[%emt 0:01:24]} Kxg7 {[%emt 0:01:31]} 18. gxh5 {[%emt 0:00:12]} (18. exd5 $18 {has better winning chances.} Bc8 19. gxh5 Nxh5 20. Nxa4 (20. Nxc4 Nxc3 21. Qxc3 b5 $16) 20... Qxa4 21. Qg5) 18... Nxc3 $16 {[%emt 0:03:08]} 19. bxc3 {[%emt 0:01:09] Chess con chili.} ({Of course not} 19. Qxc3 $6 Nxh5 20. Qe3 Rh8 $11) 19... Nxh5 {[%emt 0:09:45]} (19... Qa4 $2 20. Qg5 Nh7 21. Qf4 $18) 20. Qg5 {[%emt 0:03:54]} Rh8 {[%emt 0:00:59]} 21. exd5 {[%emt 0:03:04]} Bxd5 {[%emt 0:03:45] [#]} 22. Nxg6 $1 {[%emt 0:01:51][%mdl 576] Discovered Attack} fxg6 {[%emt 0:00:16]} 23. Qxd5 {[%emt 0:00:33]} Qf7 {[%emt 0:01:25]} 24. Qxf7+ {[%emt 0:04:20]} ({Don't take} 24. Qxb7 Qf4+ 25. Kd1 Qd6 $14) 24... Kxf7 {[%emt 0:00:02]} 25. Bxc4+ {[%emt 0:00:08]} Kf6 {[%emt 0:01:18]} 26. Re1 {[%emt 0:01:18] And now Re6+ would win.} Rhe8 $2 {[%emt 0:00:47] [#] A mistake that costs the game.} (26... Ng7 $16) 27. Re6+ $18 {[%emt 0:01:05]} Kg7 {[%emt 0:00:47]} 28. Bb5 {[%emt 0:05:28]} Kf7 {[%emt 0:00:44]} (28... Nf4 {might work better.}) 29. Rhe1 {[%emt 0:00:29]} Nf4 {[%emt 0:00:25]} 30. Bxe8+ {[%emt 0:00:54]} Rxe8 {[%emt 0:00:02][%mdl 4096] Endgame KRR-KRN} 31. R6e5 {[%emt 0:00:39]} Rc8 {[%emt 0:00:53]} 32. R1e4 {[%emt 0:00:57]} Nh5 {[%emt 0:00:32]} 33. Rxe7+ {[%emt 0:00:34]} Kf6 {[%emt 0:00:04]} 34. Rxb7 {[%emt 0:00:54]} Rxc3 {[%emt 0:00:09]} 35. Rb3 {[%emt 0:00:37]} Rc7 {[%emt 0:00:33]} 36. Rb6+ {[%emt 0:00:34]} Kf7 {[%emt 0:00:22]} 37. Ra6 {[%emt 0:00:24]} Rc3 {[%emt 0:00:43]} 38. Rxa5 {[%emt 0:00:29]} Rxf3 {[%emt 0:00:07]} 39. d5 Ng3 {[%emt 0:01:11]} 40. Ra7+ {[%emt 0:03:09]} Kf8 {[%emt 0:00:36]} 41. Rb4 {[%emt 0:00:20] Weighted Error Value: White=0.10 (very precise) /Black=0.42} 1-0

[Event "87th Spanish Championship 2022"]
[Site "Linares"]
[Date "2022.08.14"]
[Round "5.36"]
[White "Del Carmen Hernandez, Aimer"]
[Black "Bermudez Ureba, Juan Diego"]
[Result "1-0"]
[ECO "E10"]
[WhiteElo "2066"]
[BlackElo "2198"]
[Annotator "TA"]
[PlyCount "61"]
[EventDate "2022.08.11"]
[EventType "swiss"]
[EventCountry "ESP"]
[SourceTitle "playchess.com"]
[Source "ChessBase"]
[SourceQuality "1"]
[TimeControl "5400+30"]

{[%evp 15,61,18,46,13,24,4,0,-38,0,-21,-24,-27,0,-9,-8,-75,-20,-45,-46,-65,-48,-71,-68,-79,-68,-85,-29,-23,71,0,81,102,145,45,137,114,29990,29991,29993,29994,29994,29995,29996,29997,29997,29998,29998,29999]} 1. d4 {[%emt 0:00:19]} Nf6 {[%emt 0:00:05]} 2. c4 {[%emt 0:00:11]} e6 {[%emt 0:00:04]} 3. Nf3 {[%emt 0:00:08]} d5 {[%emt 0:00:34]} 4. g3 {[%emt 0:01:25]} b6 {[%emt 0:00:35]} 5. Bg2 {[%emt 0:00:33]} Bb7 {[%emt 0:00:04]} 6. Ne5 {[%emt 0:02:27]} Be7 {[%emt 0:02:57]} 7. O-O {[%emt 0:00:09]} O-O {[%emt 0:00:08]} 8. Nc3 {[%emt 0:02:04]} c6 {[%emt 0:00:31]} 9. Qc2 {[%emt 0:04:02] E06: Closed Catalan: Early deviations.} Nfd7 {[%emt 0:02:49]} 10. Nxd7 {[%emt 0:05:05]} Nxd7 {[%emt 0:00:18]} 11. e4 {[%emt 0:00:06][%cal Re4d5] [#] The position is equal.} Ba6 $146 {[%emt 0:15:23]} ({Predecessor:} 11... Rc8 12. b3 e5 13. exd5 cxd5 14. Nxd5 Bxd5 15. Bxd5 exd4 16. Bf4 Bf6 17. Bb7 d3 18. Qxd3 {½-½ (28) Novikovas,A (2000)-Murin,M (1775) Krynica 1999}) 12. b3 {[%emt 0:14:38]} dxc4 {[%emt 0:00:16]} 13. Rd1 {[%emt 0:01:49]} Rc8 {[%emt 0:03:48]} 14. Qe2 {[%emt 0:10:27]} b5 {[%emt 0:01:22] aiming for ...Qa5.} 15. bxc4 (15. e5 $1 $11) 15... bxc4 {[%emt 0:00:57]} (15... Qa5 $17 16. Qc2 b4) 16. Bf4 {[%emt 0:09:09]} Qa5 {[%emt 0:02:40]} 17. Rac1 {[%emt 0:02:26]} Rfd8 {[%emt 0:01:28]} 18. e5 {[%emt 0:04:12]} Nb6 {[%emt 0:26:10]} 19. Qg4 {[%emt 0:04:53]} Nd5 {[%emt 0:03:50]} 20. Bh6 {[%emt 0:00:19][%csl Gh6][%cal Rg4g7]} g6 {[%emt 0:07:50]} (20... Bf8 $17 21. Bd2 Nxc3 22. Bxc3 Bb4 23. Bxb4 Qxb4) 21. Ne4 $11 {[%emt 0:00:39]} Ba3 {[%emt 0:12:35] [#]} (21... Qxa2 $2 22. Ra1 Qb2 23. Rxa6 $18) (21... Rd7 $11 {keeps the balance.}) 22. Ng5 {[%emt 0:04:42]} Bxc1 {[%emt 0:03:02]} (22... Ne7 $11 23. Nxe6 Bxc1 24. Bxc1 (24. Rxc1 Nf5 $15) 24... c3 $1 25. Nxd8 Rxd8) 23. Rxc1 $16 {[%emt 0:00:08]} Qc7 {[%emt 0:00:06]} 24. Bxd5 {[%emt 0:01:07]} (24. Qh3 $1 $16) 24... cxd5 {[%emt 0:01:03]} (24... Rxd5 $14 25. Qf4 f5 26. Nxe6 Qe7) 25. Qh3 {[%emt 0:04:44][%cal Og5h7] Intending Nxh7! and mate. White is more active.} c3 $2 {[%emt 0:02:22][%mdl 8192] [#] This move loses the game for Black.} (25... Re8 $16) 26. Nxh7 $1 {[%emt 0:02:03][%mdl 512] White mates.} f5 {[%emt 0:00:07]} (26... Qe7 27. Nf6+) 27. Nf6+ {[%emt 0:00:21]} Kf7 {[%emt 0:00:12] [#]} 28. Bf8 $1 {[%emt 0:00:52][%mdl 576] Decoy} Kxf8 {[%emt 0:00:53]} (28... Qxe5 29. Qh7+) 29. Qh8+ {[%emt 0:00:08]} Kf7 {[%emt 0:00:18]} 30. Qh7+ {[%emt 0:00:05]} Kf8 {[%emt 0:00:11]} 31. Qg8+ {[%emt 0:00:04] Weighted Error Value: White=0.20 (precise) /Black=0.57} 1-0

[Event "87th Spanish Championship 2022"]
[Site "Linares"]
[Date "2022.08.15"]
[Round "6.1"]
[White "Santos Latasa, Jaime"]
[Black "Yuffa, Daniil"]
[Result "1/2-1/2"]
[ECO "D37"]
[WhiteElo "2675"]
[BlackElo "2603"]
[Annotator "TA"]
[PlyCount "60"]
[EventDate "2022.08.11"]
[EventType "swiss"]
[EventCountry "ESP"]
[SourceTitle "playchess.com"]
[Source "ChessBase"]
[SourceQuality "1"]
[TimeControl "5400+30"]

{[%evp 9,60,29,48,42,39,41,45,41,56,37,52,24,24,0,0,0,2,-27,-39,-42,-5,-17,0,0,18,15,27,13,14,10,14,10,21,19,36,11,12,4,12,0,0,0,0,0,0,0,0,0,0,0,0,0,0]} 1. d4 {[%emt 0:00:02]} Nf6 {[%emt 0:00:32]} 2. c4 {[%emt 0:01:01]} e6 {[%emt 0:00:17]} 3. Nf3 {[%emt 0:00:16]} d5 {[%emt 0:00:08]} 4. Nc3 {[%emt 0:00:15]} dxc4 {[%emt 0:00:07]} 5. e4 {[%emt 0:00:07][%cal Be2e4,Be4e5][%mdl 32]} b5 {[%emt 0:00:05]} 6. e5 {[%emt 0:00:09] D24: Queen's Gambit Accepted: 3 Nf3 Nf6 4 Nc3.} Nfd7 {[%emt 0:00:09]} 7. Nxb5 {[%emt 0:00:06]} Nb6 {[%emt 0:00:07]} 8. Be2 {[%emt 0:00:11] White is slightly better.} Nc6 {[%emt 0:01:02][%cal Bb8c6,Bc6e7,Be7f5][%mdl 32]} 9. Be3 {[%emt 0:01:33]} Bb7 {[%emt 0:00:54]} 10. a3 {[%emt 0:00:15]} Qd7 {[%emt 0:00:39]} 11. Nc3 {[%emt 0:01:31]} Ne7 {[%emt 0:01:12]} 12. O-O {[%emt 0:06:01]} Nf5 {[%emt 0:01:48][%cal Oc7c5] [#]} 13. Qc1 $146 {[%emt 0:08:34]} ({Predecessor:} 13. b3 cxb3 14. Qxb3 Be7 15. Bb5 c6 16. Be2 O-O 17. Ne4 Qd5 18. Qc2 c5 19. Nxc5 {0-1 (86) Koelle,T (2378)-Zelcic,R (2513) Terme Catez 2022}) 13... Be7 {[%emt 0:03:45]} 14. Rd1 {[%emt 0:00:14]} O-O {[%emt 0:02:10]} 15. d5 {[%emt 0:06:37]} Nxe3 {[%emt 0:30:13]} 16. dxe6 {[%emt 0:01:21]} Qxe6 {[%emt 0:00:04]} 17. Qxe3 {[%emt 0:00:18]} Qg6 {[%emt 0:01:50]} 18. Ne1 {[%emt 0:06:45]} Rad8 {[%emt 0:06:08]} 19. Bf3 {[%emt 0:00:48]} Bxf3 {[%emt 0:03:28]} 20. Nxf3 {[%emt 0:00:59]} Rd3 {[%emt 0:00:31]} 21. Qe2 {[%emt 0:00:11]} c5 {[%emt 0:04:57]} 22. a4 {[%emt 0:07:22]} a5 {[%emt 0:02:04] The position is equal.} 23. h3 {[%emt 0:05:30]} h6 {[%emt 0:03:20]} 24. Kf1 {[%emt 0:08:30]} Rfd8 {[%emt 0:02:53]} 25. Ne1 {[%emt 0:01:01]} R3d4 {[%emt 0:04:24]} 26. Nf3 {[%emt 0:02:01]} Rd3 {[%emt 0:00:08]} 27. Ne1 {[%emt 0:01:42]} R3d4 {[%emt 0:02:05]} 28. Nf3 {[%emt 0:01:14]} Rd3 {[%emt 0:06:27]} 29. Ne1 {[%emt 0:01:11]} R3d4 {[%emt 0:00:03]} 30. Nf3 {[%emt 0:00:04]} Rd3 {[%emt 0:00:04] Weighted Error Value: White=0.06 (flawless) /Black=0.05 (flawless)} 1/2-1/2

[Event "87th Spanish Championship 2022"]
[Site "Linares"]
[Date "2022.08.15"]
[Round "6.2"]
[White "Garriga Cazorla, Pere"]
[Black "Iturrizaga Bonelli, Eduardo"]
[Result "1/2-1/2"]
[ECO "E46"]
[WhiteElo "2505"]
[BlackElo "2619"]
[Annotator "TA"]
[PlyCount "39"]
[EventDate "2022.08.11"]
[EventType "swiss"]
[EventCountry "ESP"]
[SourceTitle "playchess.com"]
[Source "ChessBase"]
[SourceQuality "1"]
[TimeControl "5400+30"]

{[%evp 24,38,0,-14,0,0,0,0,-7,-12,0,0,0,-14,0,0,0]} 1. d4 {[%emt 0:00:03]} Nf6 {[%emt 0:01:04]} 2. c4 {[%emt 0:00:18]} e6 {[%emt 0:00:27]} 3. Nc3 {[%emt 0:00:30]} Bb4 {[%emt 0:00:06]} 4. e3 {[%emt 0:00:53]} O-O {[%emt 0:00:14]} 5. Bd2 {[%emt 0:01:52]} b6 {[%emt 0:01:42]} 6. Nf3 {[%emt 0:00:35]} c5 {[%emt 0:02:43]} 7. Bd3 {[%emt 0:05:53]} cxd4 {[%emt 0:00:12]} 8. exd4 {[%emt 0:00:08]} Bb7 {[%emt 0:00:05]} 9. O-O {[%emt 0:09:54]} d5 {[%emt 0:08:41]} 10. Re1 {[%emt 0:11:59]} dxc4 {[%emt 0:04:19]} 11. Bxc4 {[%emt 0:01:09]} Nc6 {[%emt 0:00:05]} 12. a3 {[%emt 0:01:04]} Be7 {[%emt 0:24:26]} 13. Bg5 {[%emt 0:08:13] The position is equal.} Rc8 {[%emt 0:00:21] E57: Nimzo-Indian: Rubinstein: Main Line: 7...Nc6 8 a3 dxc4 9 Bxc4 cxd4.} 14. Ba2 {[%emt 0:00:54]} h6 {[%emt 0:12:53]} 15. Bf4 {[%emt 0:09:25]} Bd6 {[%emt 0:13:34]} 16. Be5 {[%emt 0:08:46]} Be7 {[%emt 0:10:34]} ({Resist} 16... Nxe5 17. dxe5 Bxa3 18. exf6 (18. bxa3 Rxc3 19. exf6 Bxf3 $14) 18... Bxb2 19. fxg7 Kxg7 20. Ne4 $1 $16) 17. Bf4 {[%emt 0:05:56]} Bd6 {[%emt 0:00:06]} 18. Be5 {[%emt 0:00:06]} Be7 {[%emt 0:00:33]} ({Don't take} 18... Nxe5 19. dxe5 Bxa3 20. exf6 (20. bxa3 Rxc3 21. exf6 Bxf3 $14) 20... Bxb2 21. fxg7 Kxg7 {[#]} 22. Ne4 $1 $16) 19. Bf4 {[%emt 0:00:05]} Bd6 {[#] Not much happened in this game.  Weighted Error Value: White=0.02 (flawless) /Black=0.07 (flawless)} {Predecessor:} 20. Bxd6 $146 1/2-1/2